bitfinex/quotes_ETHUSD_20250810
["timestamp","ask_amount","ask_price","bid_price","bid_amount"]
[1754830270404,1e-08,4201.9,4201.8,8.84526786]
[1754830272608,1e-08,4201.9,4201.8,9.31616786]
[1754830273010,1e-08,4201.9,4201.8,9.77686786]
[1754830275582,1e-08,4201.9,4201.8,7.24286786]
[1754830275784,1e-08,4201.9,4201.8,9.77686786]
[1754830277196,1e-08,4201.9,4201.8,10.32686786]
[1754830277409,1e-08,4201.9,4201.8,8.84526786]
[1754830277715,1e-08,4201.9,4201.8,9.76596786]
[1754830284022,1e-08,4201.9,4201.8,10.31596786]
[1754830285120,1e-08,4201.9,4201.8,10.31684123]
[1754830288926,1e-08,4202.4,4201.9,5.92987577]
[1754830289090,1e-08,4202.4,4202.3,2.37964923]
[1754830289426,1e-08,4202.4,4202.3,8.15869894]
[1754830289626,1e-08,4202.4,4202.3,6.52160245]
[1754830289920,1e-08,4202.4,4202.3,8.25410245]
[1754830290121,1e-08,4202.4,4202.3,6.94247894]
[1754830290321,1e-08,4202.4,4202.3,9.47647894]
[1754830292214,1e-08,4202.4,4202.3,9.47621977]
[1754830292606,1e-08,4202.4,4202.3,6.94221977]
[1754830292806,1e-08,4202.4,4202.3,5.71984328]
[1754830292996,1e-08,4202.4,4202.3,8.25284328]
[1754830295912,1e-08,4202.4,4202.3,5.71984328]
[1754830296112,1e-08,4202.4,4202.3,8.25284328]
[1754830300201,1e-08,4202.4,4202.3,8.25287604]
[1754830300530,1e-08,4202.4,4202.3,8.03184923]
[1754830301101,1e-08,4202.4,4202.3,5.49884923]
[1754830301399,1e-08,4202.4,4202.3,8.03184923]
[1754830301794,1e-08,4202.4,4202.3,2.49884923]
[1754830302026,1e-08,4202.4,4202.3,5.03184923]
[1754830302531,1e-08,4202.4,4202.3,5.25293123]
[1754830302827,1e-08,4202.4,4202.3,5.25296145]
[1754830303402,1e-08,4202.4,4202.3,5.25297791]
[1754830303904,0.91060001,4202.4,4202.3,5.25297791]
[1754830304297,0.91060001,4202.4,4202.3,2.71997791]
[1754830304802,0.91060001,4202.4,4202.3,5.25297791]
[1754830305103,0.43490001,4202.4,4202.3,5.13377791]
[1754830305339,0.91060001,4202.4,4202.3,5.13377791]
[1754830306328,0.91060001,4202.4,4202.3,2.60077791]
[1754830306528,0.91060001,4202.4,4202.3,5.13377791]
[1754830307404,0.90870001,4202.4,4202.3,2.60077791]
[1754830307742,0.90870001,4202.4,4202.3,5.13377791]
[1754830307909,0.44390001,4202.4,4202.3,2.60077791]
[1754830308105,0.90870001,4202.4,4202.3,5.13377791]
[1754830309413,0.90870001,4202.4,4202.3,0.22112868]
[1754830309605,1.02790001,4202.4,4202.3,0.22112868]
[1754830311940,1.36864448,4202.4,4202.3,0.22112868]
[1754830312834,1.36864448,4202.4,4202.3,0.22116991]
[1754830313430,1.02790001,4202.4,4202.3,0.22116991]
[1754830314342,0.11920001,4202.4,4202.3,2.60081914]
[1754830315616,0.11920001,4202.4,4202.3,3.06061914]
[1754830317049,1e-08,4202.4,4202.3,3.06061914]
[1754830317846,1e-08,4202.4,4202.3,3.55481914]
[1754830318048,1e-08,4202.4,4202.3,4.58895992]
[1754830318946,1e-08,4202.4,4202.3,7.58895992]
[1754830319149,1e-08,4202.4,4202.3,7.56516343]
[1754830320251,1e-08,4202.4,4202.3,8.11516343]
[1754830322743,1e-08,4202.4,4202.3,7.10536343]
[1754830322942,1e-08,4202.4,4202.3,9.14416343]
[1754830323147,1e-08,4202.4,4202.3,3.61116343]
[1754830323330,1e-08,4202.4,4202.3,7.09816343]
[1754830323530,1e-08,4202.4,4202.3,6.14416343]
[1754830323951,1e-08,4202.4,4202.3,5.25301914]
[1754830324150,1e-08,4202.4,4202.3,6.20701914]
[1754830324342,1e-08,4202.4,4202.3,9.20701914]
[1754830325061,1e-08,4202.4,4202.3,9.20686918]
[1754830325443,1e-08,4202.4,4202.3,8.71266918]
[1754830325638,1e-08,4202.4,4202.3,8.25286918]
[1754830326955,1e-08,4202.4,4202.3,5.71986918]
[1754830327160,1e-08,4202.4,4202.3,8.25286918]
[1754830327659,1e-08,4202.4,4202.3,8.13366823]
[1754830328359,1e-08,4202.4,4202.3,8.13368625]
[1754830329454,1e-08,4202.4,4202.3,5.13368625]
[1754830330565,1e-08,4202.4,4202.3,5.13373649]
[1754830330742,1e-08,4202.4,4202.3,2.60073649]
[1754830330943,1e-08,4202.4,4202.3,5.13373649]
[1754830332866,1e-08,4202.4,4202.3,2.60073649]
[1754830333166,0.44390001,4202.4,4202.3,5.13373649]
[1754830333337,0.90870001,4202.4,4202.3,2.60073649]
[1754830333533,0.90870001,4202.4,4202.3,5.13373649]
[1754830333534,1e-08,4202.4,4202.3,5.13373649]
[1754830333835,0.44390001,4202.4,4202.3,5.13373649]
[1754830334447,1e-08,4202.4,4202.3,5.13373649]
[1754830334646,1e-08,4202.4,4202.3,2.60073649]
[1754830334846,1e-08,4202.4,4202.3,5.13373649]
[1754830335066,1e-08,4202.4,4202.3,2.60073649]
[1754830335642,0.44390001,4202.4,4202.3,5.13373649]
[1754830335842,1e-08,4202.4,4202.3,5.13373649]
[1754830336570,0.90870001,4202.4,4202.3,2.60073649]
[1754830336750,0.90870001,4202.4,4202.3,0.22108726]
[1754830337069,1.02790001,4202.4,4202.3,0.22108726]
[1754830337848,1.02390001,4202.4,4202.3,0.22108726]
[1754830340980,0.11920001,4202.4,4202.3,0.22108726]
[1754830341275,1.04440001,4202.4,4202.3,0.22108726]
[1754830342674,0.11920001,4202.4,4202.3,2.60073649]
[1754830342844,0.11920001,4202.4,4202.3,2.60077483]
[1754830343701,1e-08,4202.4,4202.3,0.2211256]
[1754830343989,1e-08,4202.4,4202.3,0.10207232]
[1754830343990,3.30479262,4202.4,4202.3,0.10207232]
[1754830344167,3.30479262,4202.4,4201.8,0.001]
[1754830344168,2.37967247,4202.3,4201.8,0.001]
[1754830344485,0.4644,4202.3,4201.8,0.001]
[1754830344649,0.9252,4202.2,4201.8,0.001]
[1754830345044,2.37970839,4202.2,4201.8,0.001]
[1754830345259,0.9252,4202.1,4201.8,0.001]
[1754830345470,0.33049084,4202.0,4201.8,0.001]
[1754830345642,1.25569084,4202.0,4201.8,0.001]
[1754830345844,0.9252,4201.9,4201.8,0.001]
[1754830346884,0.33049084,4202.0,4201.8,0.001]
[1754830347558,0.4644,4202.2,4201.8,0.001]
[1754830348067,0.9252,4202.2,4201.8,0.001]
[1754830349281,0.9252,4202.1,4201.8,0.001]
[1754830349671,0.4644,4202.1,4201.8,0.001]
[1754830349874,1e-08,4202.4,4201.8,0.4359]
[1754830350166,1e-08,4202.4,4202.3,2.37964923]
[1754830350753,1e-08,4202.4,4202.1,2.81464496]
[1754830350754,1e-08,4202.4,4202.1,0.4349]
[1754830350956,1e-08,4202.4,4202.1,2.83195795]
[1754830351266,1e-08,4202.4,4202.3,2.37964923]
[1754830351760,1e-08,4202.4,4202.3,5.79974923]
[1754830352468,1e-08,4202.4,4202.3,4.91264923]
[1754830353568,1e-08,4202.4,4202.3,2.533]
[1754830353775,0.11920001,4202.4,4202.2,4.91265759]
[1754830353979,0.11920001,4202.4,4201.9,0.714652]
[1754830354192,0.11920001,4202.4,4202.0,3.4201]
[1754830354398,0.11920001,4202.4,4202.1,2.37971493]
[1754830354704,0.11920001,4202.4,4202.2,2.37969394]
[1754830355071,0.11920001,4202.4,4202.2,2.81459394]
[1754830355598,0.11920001,4202.4,4202.2,2.37965782]
[1754830355800,0.11920001,4202.4,4202.2,2.81455782]
[1754830355997,0.11920001,4202.4,4202.2,2.37965782]
[1754830356391,0.11920001,4202.4,4202.2,2.81455281]
[1754830356701,0.11920001,4202.4,4202.3,2.37964923]
[1754830357298,0.11920001,4202.4,4202.2,2.37968996]
[1754830357673,0.11920001,4202.4,4202.3,2.37964923]
[1754830361989,0.11920001,4202.4,4202.3,4.91164923]
[1754830363605,0.11920001,4202.4,4202.3,2.37964923]
[1754830365090,0.11920001,4202.4,4201.9,0.714652]
[1754830365312,0.58360001,4202.4,4202.0,2.532]
[1754830365509,0.46440001,4202.4,4202.1,2.37975245]
[1754830365714,0.46440001,4202.4,4202.0,4.91180868]
[1754830365883,0.1192,4202.1,4202.0,4.91180868]
[1754830366987,0.1192,4202.1,4202.0,2.532]
[1754830367929,0.1192,4202.1,4201.8,0.001]
[1754830368106,0.1192,4202.1,4202.0,2.532]
[1754830368641,0.1192,4202.1,4201.8,0.001]
[1754830368949,0.46199357,4202.1,4201.9,2.532]
[1754830369334,0.1192,4202.1,4201.9,2.532]
[1754830369938,0.1192,4202.1,4201.8,2.533]
[1754830370303,0.1192,4202.1,4201.9,2.37986294]
[1754830370705,0.1192,4202.1,4201.8,2.38092429]
[1754830370943,0.1192,4202.1,4201.9,2.532]
[1754830371145,0.29366511,4202.1,4201.9,4.9118633]
[1754830371305,0.1192,4202.1,4201.9,4.9118633]
[1754830371500,0.1192,4202.1,4201.9,4.91187085]
[1754830372040,0.1192,4202.1,4202.0,2.37981913]
[1754830373403,0.1192,4202.1,4202.0,3.31461913]
[1754830375637,0.1192,4202.1,4202.0,5.84661913]
[1754830375806,0.30153854,4202.1,4202.0,5.84661913]
[1754830376023,0.1192,4202.1,4202.0,5.84661913]
[1754830376733,0.1192,4202.1,4201.9,2.37986859]
[1754830377333,0.1192,4202.1,4202.0,2.37981913]
[1754830378151,0.1192,4202.1,4202.0,4.91181913]
[1754830378352,0.1192,4202.1,4202.0,5.84661913]
[1754830378654,0.1192,4202.1,4202.0,2.84761913]
[1754830378863,0.1192,4202.1,4202.0,5.37961913]
[1754830379022,0.1192,4202.1,4202.0,2.532]
[1754830379353,0.1192,4202.1,4202.0,4.91281913]
[1754830379722,0.1192,4202.1,4202.0,2.533]
[1754830379922,0.1192,4202.1,4202.0,0.001]
[1754830380338,0.36908084,4202.1,4202.0,0.001]
[1754830380540,0.29780714,4202.1,4202.0,0.001]
[1754830381647,0.29780714,4202.1,4202.0,2.38081913]
[1754830381832,0.29780714,4202.1,4202.0,0.9358]
[1754830382034,0.29780714,4202.1,4202.0,0.001]
[1754830382237,0.29780714,4202.1,4202.0,0.9358]
[1754830382741,0.29780714,4202.1,4202.0,0.4688]
[1754830382936,0.29780714,4202.1,4202.0,0.001]
[1754830383154,0.29780714,4202.1,4202.0,2.533]
[1754830383336,0.56555388,4202.1,4202.0,2.533]
[1754830383658,0.29780714,4202.1,4202.0,2.533]
[1754830385260,0.29780714,4202.1,4202.0,0.001]
[1754830389579,2.67756963,4202.1,4202.0,0.001]
[1754830389873,0.29780714,4202.1,4202.0,0.001]
[1754830393765,2.67756963,4202.1,4202.0,0.001]
[1754830394064,3.22962587,4202.1,4202.0,0.001]
[1754830395684,6.22962587,4202.1,4202.0,0.001]
[1754830398265,3.22962587,4202.1,4202.0,0.001]
[1754830398584,4.18712587,4202.1,4202.0,0.001]
[1754830398940,4.70078137,4202.1,4202.0,0.001]
[1754830399260,4.18712587,4202.1,4202.0,0.001]
[1754830399859,4.70068342,4202.1,4202.0,0.001]
[1754830400060,4.18712587,4202.1,4202.0,0.001]
[1754830400770,10.23262186,4202.1,4202.0,0.001]
[1754830401172,10.78262186,4202.1,4202.0,0.001]
[1754830401763,35.92981913,4202.0,4201.8,0.001]
[1754830401963,38.76041244,4201.9,4201.8,0.001]
[1754830402267,39.71791244,4201.9,4201.8,0.001]
[1754830402775,2.38004569,4201.6,4201.5,0.001]
[1754830402977,38.03024569,4201.6,4201.5,0.001]
[1754830403345,38.98774569,4201.6,4201.5,0.001]
[1754830403546,40.94176487,4201.6,4201.5,0.001]
[1754830404974,41.03016487,4201.6,4201.5,0.001]
[1754830405277,41.49176487,4201.6,4201.5,0.001]
[1754830409084,41.60770048,4201.6,4201.5,0.001]
[1754830409376,40.65020048,4201.6,4201.5,0.001]
[1754830411588,40.65020048,4201.6,4201.4,0.001]
[1754830411589,5.93010234,4201.5,4201.4,0.001]
[1754830411800,4.76031798,4201.4,4201.0,0.001]
[1754830411954,3.082,4201.3,4201.0,0.001]
[1754830412280,6.0494723,4201.2,4201.0,0.001]
[1754830412499,7.84001129,4201.2,4201.0,0.001]
[1754830412655,35.93032896,4201.1,4201.0,0.001]
[1754830412859,38.46232896,4201.1,4201.0,0.001]
[1754830413186,38.46232896,4201.1,4200.5,0.001]
[1754830413187,5.93049895,4200.8,4200.5,0.001]
[1754830413384,5.93049895,4200.8,4200.1,0.001]
[1754830413385,2.930839,4200.2,4200.1,0.001]
[1754830413583,35.582039,4200.2,4200.1,0.001]
[1754830413788,2.93100907,4199.9,4199.6,0.041]
[1754830414087,8.58120907,4199.9,4199.6,0.041]
[1754830414286,5.93112246,4199.7,4199.6,0.041]
[1754830414454,38.46212246,4199.7,4199.6,0.041]
[1754830414654,5.93117915,4199.6,4199.5,0.001]
[1754830414860,36.05037915,4199.6,4199.5,0.001]
[1754830415077,36.05037915,4199.6,4199.3,0.001]
[1754830415078,5.93129256,4199.4,4199.3,0.001]
[1754830415278,8.46229256,4199.4,4199.3,0.001]
[1754830415480,8.46229256,4199.4,4199.1,0.001]
[1754830415481,5.93134927,4199.3,4199.1,0.001]
[1754830415680,6.05054927,4199.3,4199.1,0.001]
[1754830415882,3.6692,4199.3,4199.1,0.001]
[1754830416212,6.84962317,4199.3,4199.1,0.001]
[1754830416375,5.93140598,4199.2,4199.1,0.001]
[1754830416573,39.13030598,4199.2,4199.1,0.001]
[1754830416790,5.93168957,4198.7,4198.6,0.04]
[1754830416990,8.58288957,4198.7,4198.6,0.04]
[1754830417233,2.38192158,4198.3,4197.9,0.431]
[1754830417366,7.29764745,4198.7,4197.9,0.431]
[1754830417367,2.532,4198.2,4197.9,0.431]
[1754830417565,2.38202996,4198.1,4197.6,0.04]
[1754830417795,2.38202996,4198.1,4198.0,0.8977]
[1754830417965,2.38202996,4198.1,4197.6,0.471]
[1754830417966,5.3820935,4198.0,4197.6,0.471]
[1754830418164,0.1192,4197.7,4197.6,0.04]
[1754830418365,8.58345695,4197.7,4197.6,0.04]
[1754830418688,8.58345695,4197.7,4196.6,0.04]
[1754830418689,0.55,4197.5,4196.6,0.04]
[1754830418872,0.55,4197.3,4196.8,0.8977]
[1754830419078,4.91454411,4197.2,4196.8,0.4667]
[1754830419277,0.1192,4196.9,4196.6,2.42287293]
[1754830419574,2.532,4196.8,4196.6,2.42287293]
[1754830419780,2.532,4196.8,4196.7,0.8977]
[1754830420086,2.532,4196.8,4196.7,3.2805246]
[1754830420612,0.1192,4196.9,4196.8,2.38276782]
[1754830420907,0.1192,4196.9,4196.8,4.0890881]
[1754830421678,2.6512,4197.1,4197.0,2.38265427]
[1754830421903,2.6512,4197.1,4197.0,3.28035427]
[1754830422073,0.1192,4197.1,4197.0,3.28035427]
[1754830423679,0.1192,4197.1,4197.0,3.99586527]
[1754830423875,0.17523541,4198.7,4197.0,2.35586288]
[1754830424079,2.533,4198.6,4197.3,2.38248397]
[1754830424279,2.84296002,4199.3,4197.6,2.3823137]
[1754830424280,0.1192,4197.7,4197.6,2.3823137]
[1754830424608,0.1192,4197.7,4197.6,3.2800137]
[1754830426183,2.533,4198.0,4197.9,2.38214345]
[1754830426382,2.533,4198.0,4197.9,3.27984345]
[1754830426577,0.1192,4198.1,4198.0,2.3820867]
[1754830426778,0.1192,4198.1,4198.0,3.2797867]
[1754830427095,2.533,4198.6,4198.5,2.38180302]
[1754830427474,0.1192,4199.1,4199.0,2.3815194]
[1754830427674,0.1192,4199.1,4199.0,3.2936194]
[1754830430602,0.002,4201.6,4199.0,1.0521]
[1754830430802,0.1192,4200.6,4200.5,2.38066896]
[1754830430995,0.1192,4200.6,4200.5,3.29276896]
[1754830434900,0.1192,4200.6,4200.5,4.00771896]
[1754830438326,0.2222429,4200.9,4200.8,2.38049895]
[1754830438825,0.1592,4200.9,4200.8,2.81029895]
[1754830439227,0.1592,4200.9,4200.8,2.38049895]
[1754830441062,0.1592,4200.9,4200.6,2.3806113]
[1754830441359,0.1592,4200.9,4200.7,3.09547862]
[1754830441730,0.1592,4200.9,4200.7,2.38055562]
[1754830441930,0.1592,4200.9,4200.6,0.714923]
[1754830442148,0.1592,4200.9,4200.7,2.38055562]
[1754830442351,0.1592,4200.9,4200.6,0.714923]
[1754830442352,0.42962,4200.9,4200.6,0.714923]
[1754830442662,0.42962,4200.9,4200.6,2.38057631]
[1754830443436,0.42962,4200.9,4200.7,2.3805135]
[1754830443640,0.31042,4200.9,4200.6,2.38060433]
[1754830443944,0.31042,4200.9,4200.4,2.38068797]
[1754830444145,0.1192,4200.5,4200.3,3.09572196]
[1754830444321,0.1192,4200.5,4200.4,2.38072564]
[1754830444974,0.1192,4200.5,4200.3,2.38077043]
[1754830445756,0.1192,4200.5,4200.2,0.31042]
[1754830446077,0.1192,4200.5,4199.3,3.0]
[1754830446370,0.4513,4200.5,4199.9,0.4823]
[1754830446567,0.1192,4200.1,4200.0,2.38095238]
[1754830446768,0.1192,4200.1,4200.0,3.29305238]
[1754830447734,0.1192,4200.1,4200.0,2.38095238]
[1754830447948,0.1192,4200.1,4199.7,3.2932198]
[1754830448240,0.1192,4200.1,4199.9,2.38100907]
[1754830448442,0.1192,4200.1,4200.0,2.38095238]
[1754830448836,0.1192,4200.1,4199.7,0.4913]
[1754830449038,2.9903,4200.3,4199.6,2.38116416]
[1754830449225,2.9903,4200.3,4199.3,0.4298]
[1754830449226,0.1192,4199.7,4199.4,2.38129256]
[1754830449756,0.5705,4199.7,4199.2,2.38135484]
[1754830449952,0.1192,4199.3,4199.2,2.38135484]
[1754830450335,0.1192,4199.3,4199.0,0.715163]
[1754830450559,0.1192,4199.3,4198.9,2.38156839]
[1754830450734,0.1192,4199.0,4198.9,2.38156911]
[1754830451150,0.1192,4199.0,4198.6,0.001]
[1754830451360,2.539,4199.5,4198.7,0.715232]
[1754830451361,2.38150489,4199.1,4198.7,0.715232]
[1754830451683,0.1192,4198.7,4198.6,0.001]
[1754830452346,0.5705,4198.7,4198.6,0.001]
[1754830452546,3.41848957,4198.7,4198.6,0.001]
[1754830453054,1.0368,4198.7,4198.6,0.001]
[1754830453380,6.96848957,4198.7,4198.6,0.001]
[1754830453581,8.15739711,4198.7,4198.6,0.001]
[1754830454468,4.85810754,4198.7,4198.6,0.001]
[1754830454802,7.69109711,4198.7,4198.6,0.001]
[1754830454975,8.15739711,4198.7,4198.6,0.001]
[1754830458059,8.33936512,4198.7,4198.6,0.001]
[1754830459069,38.33936512,4198.7,4198.6,0.001]
[1754830460297,37.42176512,4198.7,4198.6,0.001]
[1754830460440,4.49007555,4198.7,4198.6,0.001]
[1754830460640,0.30116801,4198.7,4198.6,0.001]
[1754830460869,0.30116801,4198.7,4198.6,0.9138]
[1754830461492,0.30116801,4198.7,4198.6,0.001]
[1754830462574,2.68285758,4198.7,4198.6,0.001]
[1754830462739,3.62135758,4198.7,4198.6,0.001]
[1754830462939,1.15536227,4198.7,4198.6,0.001]
[1754830463866,0.30116801,4198.7,4198.6,0.9138]
[1754830464063,0.30116801,4198.7,4198.6,3.29554629]
[1754830464743,2.84216801,4198.7,4198.6,3.29554629]
[1754830466591,2.6602,4198.7,4198.6,3.29554629]
[1754830467570,0.1192,4198.7,4198.6,3.29554629]
[1754830467903,2.541,4198.8,4198.7,2.38168957]
[1754830468098,0.1192,4199.2,4199.1,2.38146269]
[1754830468399,2.541,4199.2,4199.1,2.38146269]
[1754830468603,2.541,4199.2,4199.1,3.29426269]
[1754830469001,2.541,4199.2,4199.1,3.41346269]
[1754830469188,0.002,4199.5,4199.4,2.38129256]
[1754830469687,0.002,4199.5,4199.4,3.41329256]
[1754830470276,0.002,4199.5,4199.4,3.43710548]
[1754830470810,0.002,4199.5,4199.4,3.41329256]
[1754830472606,1e-08,4199.5,4199.4,3.43710548]
[1754830472812,1e-08,4199.5,4199.4,4.31504931]
[1754830473016,1e-08,4199.5,4199.4,4.29123639]
[1754830483612,1e-08,4199.5,4199.4,3.37843639]
[1754830483814,1e-08,4199.5,4199.4,2.50049256]
[1754830484206,1e-08,4199.5,4199.4,2.96259256]
[1754830484407,1e-08,4199.5,4199.4,3.41329256]
[1754830486016,1e-08,4199.5,4199.4,2.50049256]
[1754830489104,1e-08,4199.5,4199.4,2.38129256]
[1754830492234,0.46080001,4199.5,4199.4,2.38129256]
[1754830492434,0.96040001,4199.5,4199.4,2.38129256]
[1754830493208,0.96040001,4199.5,4199.3,2.38233732]
[1754830493388,0.9604,4199.4,4199.3,0.001]
[1754830493592,1.0796,4199.4,4199.3,0.001]
[1754830494015,3.6146,4199.4,4199.3,0.001]
[1754830494216,3.97606,4199.4,4199.3,0.001]
[1754830499137,6.35735256,4199.4,4199.3,0.001]
[1754830499307,39.90735256,4199.4,4199.3,0.001]
[1754830500212,39.35735256,4199.4,4199.3,0.001]
[1754830500415,9.35735256,4199.4,4199.3,0.001]
[1754830500832,6.01566,4199.4,4199.3,0.001]
[1754830501050,8.39695256,4199.4,4199.3,0.001]
[1754830501243,8.85775256,4199.4,4199.3,0.001]
[1754830501540,6.47646,4199.4,4199.3,0.001]
[1754830501716,3.01566,4199.4,4199.3,0.001]
[1754830501902,2.6592,4199.4,4199.3,0.001]
[1754830503111,0.1192,4199.4,4199.3,2.38234927]
[1754830503329,0.1192,4199.4,4199.3,3.29454927]
[1754830503330,2.6592,4199.4,4199.3,3.29454927]
[1754830503746,2.6592,4199.4,4199.3,2.38234927]
[1754830504614,2.6592,4199.4,4199.3,3.29454927]
[1754830505922,2.6582,4199.4,4199.3,3.29454927]
[1754830506121,2.539,4199.4,4199.3,3.86214863]
[1754830508148,1e-08,4199.6,4199.5,2.38123586]
[1754830508530,1e-08,4199.6,4199.5,3.29343586]
[1754830509549,1e-08,4199.6,4199.5,3.31724821]
[1754830509721,1e-08,4199.6,4199.5,3.95588222]
[1754830511243,1e-08,4199.6,4199.5,3.93206987]
[1754830512035,1e-08,4199.6,4199.5,3.95588222]
[1754830512812,2.38169111,4202.3,4199.7,2.38112246]
[1754830512813,0.002,4200.4,4199.7,2.38112246]
[1754830513019,0.002,4200.4,4200.3,2.49998232]
[1754830513450,0.002,4200.4,4200.3,3.41218232]
[1754830517956,0.002,4200.4,4200.3,2.93268232]
[1754830518332,0.002,4200.4,4200.3,2.49998232]
[1754830518525,0.002,4200.4,4200.3,2.38078232]
[1754830519359,0.002,4200.4,4200.3,3.31758232]
[1754830521553,0.002,4200.4,4200.3,2.9625464]
[1754830521752,0.002,4200.4,4200.3,2.38078232]
[1754830523149,0.002,4200.4,4200.3,2.85438232]
[1754830523536,0.002,4200.4,4200.3,3.31758232]
[1754830527077,0.002,4200.4,4200.3,2.85438232]
[1754830527765,0.002,4200.4,4200.3,3.31758232]
[1754830528058,0.002,4200.4,4200.3,3.8993464]
[1754830529336,0.002,4200.4,4200.3,3.4361464]
[1754830529533,0.002,4200.4,4200.3,2.9625464]
[1754830531646,0.002,4200.4,4200.3,3.8993464]
[1754830533039,0.002,4200.4,4200.3,3.4361464]
[1754830533366,0.002,4200.4,4200.3,2.38078232]
[1754830533567,0.9444,4200.4,4200.3,2.38078232]
[1754830533739,0.453,4200.4,4200.2,2.5000344]
[1754830534064,0.453,4200.4,4200.3,2.38078232]
[1754830534065,0.002,4200.4,4200.3,2.38078232]
[1754830534569,0.1212,4200.4,4200.3,2.38078232]
[1754830536643,0.38692,4200.4,4200.3,2.38078232]
[1754830537066,0.1212,4200.4,4200.3,2.38078232]
[1754830544472,0.002,4200.4,4200.3,3.31758232]
[1754830544671,0.002,4200.4,4200.3,3.43678232]
[1754830549458,0.002,4200.4,4200.3,2.49998232]
[1754830549682,0.002,4200.4,4200.3,2.38078232]
[1754830554690,1e-08,4200.4,4200.3,3.28538232]
[1754830564793,1e-08,4200.4,4200.3,3.40458232]
[1754830565481,1e-08,4200.4,4200.3,6.51139014]
[1754830565687,1e-08,4200.4,4200.3,6.48758232]
[1754830566015,1e-08,4200.4,4200.3,7.37452882]
[1754830568732,1e-08,4200.4,4200.3,10.37452882]
[1754830572309,1e-08,4200.4,4200.3,7.84152882]
[1754830572512,1e-08,4200.4,4200.3,10.37452882]
[1754830577721,1e-08,4200.4,4200.3,10.37552882]
[1754830584757,1e-08,4200.9,4200.8,2.38049895]
[1754830585339,1e-08,4200.9,4200.8,9.53960393]
[1754830585539,1e-08,4200.9,4200.8,9.51579895]
[1754830585942,0.002,4201.6,4201.2,2.3802723]
[1754830586145,0.002,4201.6,4201.5,0.1192]
[1754830586716,0.002,4201.6,4201.5,2.49930234]
[1754830589862,0.002,4201.6,4201.5,3.26975742]
[1754830590421,0.002,4201.7,4201.6,2.38004569]
[1754830590627,0.002,4201.7,4201.6,5.40384614]
[1754830590822,0.002,4201.7,4201.6,5.38004569]
[1754830592837,0.002,4201.7,4201.5,3.26975742]
[1754830593038,0.002,4201.7,4201.6,2.38004569]
[1754830593851,0.4619,4201.7,4201.6,2.38004569]
[1754830594247,0.002,4201.7,4201.6,2.38004569]
[1754830594446,0.9556,4201.7,4201.6,2.38004569]
[1754830596455,0.9556,4201.7,4201.5,2.38005868]
[1754830596624,1.0728,4201.6,4201.5,2.38010234]
[1754830598953,0.002,4201.7,4201.6,2.38004569]
[1754830599861,0.002,4201.7,4201.6,2.94404569]
[1754830600727,0.002,4201.7,4201.6,3.43234569]
[1754830602434,0.002,4201.7,4201.6,2.49924569]
[1754830602859,0.002,4201.7,4201.6,3.43234569]
[1754830603664,0.002,4201.7,4201.6,2.49924569]
[1754830604639,0.002,4201.7,4201.6,3.43234569]
[1754830605471,0.002,4201.7,4201.6,5.52304614]
[1754830605677,0.002,4201.7,4201.6,7.46067822]
[1754830606245,1e-08,4201.7,4201.6,7.46067822]
[1754830606973,1e-08,4202.1,4201.8,3.0]
[1754830607172,1e-08,4202.1,4202.0,2.37981913]
[1754830607677,1e-08,4202.1,4202.0,2.49901913]
[1754830607854,1e-08,4202.1,4202.0,3.50299013]
[1754830610357,1e-08,4202.1,4202.0,4.68428129]
[1754830612792,0.38370001,4202.7,4202.6,2.37947936]
[1754830614361,0.87470001,4202.7,4202.6,2.37947936]
[1754830615791,0.9187,4202.7,4202.2,0.1192]
[1754830615991,0.21500727,4202.9,4202.6,2.37947936]
[1754830616178,0.28682073,4202.8,4202.7,2.37942275]
[1754830616685,1.20552073,4202.8,4202.6,2.37946989]
[1754830616992,0.71452073,4202.8,4202.7,2.37942275]
[1754830617197,0.71452073,4202.8,4202.6,2.37947653]
[1754830617398,0.4277,4202.7,4202.6,2.37947653]
[1754830617570,0.9187,4202.7,4201.4,3.4388]
[1754830617891,0.1192,4202.5,4202.4,2.37954568]
[1754830618093,0.1192,4202.5,4202.3,2.37963791]
[1754830618295,0.5469,4202.5,4202.3,2.37963791]
[1754830618593,0.491,4202.4,4202.2,2.37969902]
[1754830618794,0.491,4202.4,4202.0,2.37978582]
[1754830618795,0.9187,4202.4,4202.0,2.37981913]
[1754830618996,0.9187,4202.3,4201.9,2.37986817]
[1754830619186,2.532,4202.2,4201.9,2.37986817]
[1754830619382,0.9187,4202.1,4201.8,2.37991517]
[1754830619558,0.9187,4202.1,4201.9,2.37986636]
[1754830619764,0.1192,4202.1,4201.7,2.3799363]
[1754830620036,0.9187,4202.0,4201.8,2.37988805]
[1754830620195,0.1192,4202.1,4201.8,2.37988805]
[1754830620396,0.9187,4201.9,4201.7,2.37996996]
[1754830620584,0.29044,4202.1,4201.7,2.37996996]
[1754830620784,1.0379,4201.8,4201.7,2.37996996]
[1754830621664,1.0379,4201.8,4201.6,2.38003393]
[1754830621864,0.4277,4201.7,4201.6,2.38103393]
[1754830622065,0.9187,4201.7,4201.6,2.38103393]
[1754830622867,0.4277,4201.7,4201.6,2.38103393]
[1754830624391,0.1192,4201.8,4201.7,2.37998905]
[1754830624771,0.5469,4201.8,4201.7,2.37998905]
[1754830628105,2.534,4202.1,4202.0,2.37981913]
[1754830628480,2.534,4202.1,4202.0,2.81861913]
[1754830628681,2.534,4202.1,4202.0,3.28851913]
[1754830628887,2.534,4202.1,4202.0,3.86728041]
[1754830630298,2.534,4202.1,4202.0,3.98648041]
[1754830630299,0.002,4202.1,4202.0,3.98648041]
[1754830634301,0.002,4202.1,4202.0,3.40771913]
[1754830635414,0.002,4202.1,4202.0,2.49901913]
[1754830635627,0.002,4202.1,4202.0,2.37981913]
[1754830639807,0.002,4202.1,4202.0,3.36941732]
[1754830640003,0.002,4202.1,4202.0,3.34561913]